No. of Trans,Dept Family,Entity Name,Cert Date,Supplier Name,Reference,Gross Amt,Group/Department,Type of Expenditure - Subjective Codes
1,DCMS,EH,18/03/2011,D and A 2010 and D and A 2011 Ltd,0020002380,"73,902.60",Resources Group - Administrative Estates Dept,RUNNING COSTS - Rent - Operating Leases
2,DCMS,EH,05/04/2011,Hygiene and Fibre Services,0020005277,"27,780.00",National Collections Group - Property Maintenance Programme,OPERATIONAL COSTS - Annual Cyclical Works-Building
3,DCMS,EH,23/03/2011,ESRI (UK) Ltd,0020003381,367.80,Resources Group - IMT Dept,RUNNING COSTS - Software Maintenance
4,DCMS,EH,23/03/2011,ESRI (UK) Ltd,0020003381,637.88,Resources Group - IMT Dept,RUNNING COSTS - Software Maintenance
5,DCMS,EH,23/03/2011,ESRI (UK) Ltd,0020003381,"6,778.86",Resources Group - IMT Dept,RUNNING COSTS - Software Maintenance
6,DCMS,EH,23/03/2011,ESRI (UK) Ltd,0020003381,"18,201.41",Resources Group - IMT Dept,RUNNING COSTS - Software Maintenance
7,DCMS,EH,23/03/2011,ESRI (UK) Ltd,0020003381,"154,458.00",Resources Group - IMT Dept,RUNNING COSTS - Software Maintenance
8,DCMS,EH,28/03/2011,Council British Arch York,0020003356,"32,305.20",Heritage Protection & Planning Group - Heritage Protection Department,ENABLING PROGRAMMES - Hist Environ Prog Projects Gra
9,DCMS,EH,11/04/2011,The Colourhouse Ltd,0020006272,192.00,National Collections Group - Marketing Dept,SALES & PROMOTIONS - Promotional Material
10,DCMS,EH,11/04/2011,The Colourhouse Ltd,0020006272,"1,440.00",National Collections Group - Marketing Dept,SALES & PROMOTIONS - Promotional Material
11,DCMS,EH,11/04/2011,The Colourhouse Ltd,0020006272,"2,866.80",National Collections Group - Marketing Dept,SALES & PROMOTIONS - Promotional Material
12,DCMS,EH,11/04/2011,The Colourhouse Ltd,0020006272,"4,402.80",National Collections Group - Marketing Dept,SALES & PROMOTIONS - Promotional Material
13,DCMS,EH,11/04/2011,The Colourhouse Ltd,0020006272,"5,628.00",National Collections Group - Marketing Dept,SALES & PROMOTIONS - Promotional Material
14,DCMS,EH,11/04/2011,The Colourhouse Ltd,0020006272,"6,027.60",National Collections Group - Marketing Dept,SALES & PROMOTIONS - Promotional Material
15,DCMS,EH,11/04/2011,The Colourhouse Ltd,0020006272,"6,508.80",National Collections Group - Marketing Dept,SALES & PROMOTIONS - Promotional Material
16,DCMS,EH,11/04/2011,The Colourhouse Ltd,0020006272,"8,382.00",National Collections Group - Marketing Dept,SALES & PROMOTIONS - Promotional Material
17,DCMS,EH,11/04/2011,The Colourhouse Ltd,0020006272,"20,276.40",National Collections Group - Marketing Dept,SALES & PROMOTIONS - Promotional Material
18,DCMS,EH,28/03/2011,Treasure and Son,0020003254,"25,344.24",National Collections Group - Property Maintenance Programme,OPERATIONAL COSTS - Planned Maintenance
19,DCMS,EH,11/04/2011,Treasure and Son,0020006231,"1,074.37",National Collections Group - Property Maintenance Programme,OPERATIONAL COSTS - Leased Accomodation Maint
20,DCMS,EH,11/04/2011,Treasure and Son,0020006231,"3,374.51",National Collections Group - Property Maintenance Programme,OPERATIONAL COSTS - Annual Cyclical Works-Building
21,DCMS,EH,11/04/2011,Treasure and Son,0020006231,"46,531.50",National Collections Group - Property Maintenance Programme,OPERATIONAL COSTS - Annual Cyclical Works-Building
22,DCMS,EH,29/03/2011,T Butler and Sons Sawston Ltd,0020004348,150.00,National Collections Group - Property Maintenance Programme,OPERATIONAL COSTS - Planned Maintenance
23,DCMS,EH,29/03/2011,T Butler and Sons Sawston Ltd,0020004348,"26,281.07",National Collections Group - Property Maintenance Programme,OPERATIONAL COSTS - Planned Maintenance
24,DCMS,EH,04/04/2011,T Butler and Sons Sawston Ltd,0020004828,"31,209.24",National Collections Group - Property Maintenance Programme,OPERATIONAL COSTS - Planned Maintenance
25,DCMS,EH,04/04/2011,T Butler and Sons Sawston Ltd,0020004842,"32,487.84",National Collections Group - Property Maintenance Programme,OPERATIONAL COSTS - Planned Maintenance
26,DCMS,EH,12/04/2011,William Anelay Limited,0020006670,"15,038.77",National Collections Group - Site Conservation Programme,NET WIP MOVEMENT - WIP Refurb & Fitting Out
27,DCMS,EH,12/04/2011,William Anelay Limited,0020006670,"22,580.19",National Collections Group - Site Conservation Programme,OPERATIONAL COSTS - Works for Heritage Buildings
28,DCMS,EH,04/03/2011,Nimbus Conservation,0020001511,"48,021.57",National Collections Group - Site Conservation Programme,OPERATIONAL COSTS - Works for Heritage Buildings
29,DCMS,EH,11/04/2011,Nimbus Conservation,0020005810,"1,535.47",National Collections Group - Site Conservation Programme,OPERATIONAL COSTS - Works for Heritage Buildings
30,DCMS,EH,11/04/2011,Nimbus Conservation,0020005810,"43,978.15",National Collections Group - Site Conservation Programme,OPERATIONAL COSTS - Works for Heritage Buildings
31,DCMS,EH,22/03/2011,Wiltshire Council,0020003729,"-242,480.00",National Collections Group - Historic Properties Department,RUNNING COSTS - Rates Rebates
32,DCMS,EH,22/03/2011,Wiltshire Council,0020003729,"303,100.00",National Collections Group - Historic Properties Department,RUNNING COSTS - Rates & CILOR
33,DCMS,EH,01/03/2011,Concept Displays (S.W) Ltd,0020000944,"71,976.00",National Collections Group - Property Investment Programme,NET WIP MOVEMENT - WIP Refurb & Fitting Out
34,DCMS,EH,16/03/2011,Concept Displays (S.W) Ltd,0020002551,"34,800.00",National Collections Group - Property Investment Programme,NET WIP MOVEMENT - WIP Refurb & Fitting Out
35,DCMS,EH,18/03/2011,Concept Displays (S.W) Ltd,0020003355,"53,874.00",National Collections Group - Property Investment Programme,NET WIP MOVEMENT - WIP Refurb & Fitting Out
36,DCMS,EH,23/03/2011,Concept Displays (S.W) Ltd,0020003815,"26,566.20",National Collections Group - Property Investment Programme,NET WIP MOVEMENT - WIP Refurb & Fitting Out
37,DCMS,EH,23/03/2011,Concept Displays (S.W) Ltd,0020003816,"34,110.00",National Collections Group - Property Investment Programme,NET WIP MOVEMENT - WIP Refurb & Fitting Out
38,DCMS,EH,23/03/2011,Concept Displays (S.W) Ltd,0020003939,"1,216.80",National Collections Group - Property Investment Programme,NET WIP MOVEMENT - WIP Refurb & Fitting Out
39,DCMS,EH,23/03/2011,Concept Displays (S.W) Ltd,0020003939,"37,321.20",National Collections Group - Property Investment Programme,NET WIP MOVEMENT - WIP Refurb & Fitting Out
40,DCMS,EH,23/03/2011,Concept Displays (S.W) Ltd,0020003940,"30,140.40",National Collections Group - Property Investment Programme,NET WIP MOVEMENT - WIP Refurb & Fitting Out
41,DCMS,EH,23/03/2011,Concept Displays (S.W) Ltd,0020003942,"28,782.00",National Collections Group - Property Investment Programme,NET WIP MOVEMENT - WIP Refurb & Fitting Out
42,DCMS,EH,28/03/2011,Concept Displays (S.W) Ltd,0020004439,"88,740.00",National Collections Group - Property Investment Programme,NET WIP MOVEMENT - WIP Refurb & Fitting Out
43,DCMS,EH,02/03/2011,R Moulding and Co Salisbury Ltd,0020000948,"25,240.39",National Collections Group - Property Maintenance Programme,OPERATIONAL COSTS - Annual Cyclical Works-Building
44,DCMS,EH,21/03/2011,R Moulding and Co Salisbury Ltd,0020002672,"79,142.98",National Collections Group - Property Maintenance Programme,OPERATIONAL COSTS - Annual Cyclical Works-Building
45,DCMS,EH,28/03/2011,R Moulding and Co Salisbury Ltd,0020004051,"25,997.57",National Collections Group - Property Maintenance Programme,OPERATIONAL COSTS - Annual Cyclical Works-Building
46,DCMS,EH,11/04/2011,R Moulding and Co Salisbury Ltd,0020005957,"33,199.24",National Collections Group - Property Maintenance Programme,OPERATIONAL COSTS - Annual Cyclical Works-Building
47,DCMS,EH,18/03/2011,Ellis and Co Rest and Bldg Ltd,0020003258,"51,928.14",National Collections Group - Site Conservation Programme,OPERATIONAL COSTS - Works for Heritage Buildings
48,DCMS,EH,14/04/2011,W H Smith and R Ensor SAP Scheme,0020006116,"35,516.40",Resources Group - Administrative Estates Dept,RUNNING COSTS - Rent - Operating Leases
49,DCMS,EH,02/03/2011,Wessex Archaeology,0020000904,"50,000.00",Heritage Protection & Planning Group - Heritage Protection Department,OPERATIONAL COSTS - Maritime Consultants
50,DCMS,EH,25/03/2011,Wessex Archaeology,0020002503,"37,296.40",Heritage Protection & Planning Group - Heritage Protection Department,OPERATIONAL COSTS - Maritime Consultants
51,DCMS,EH,16/03/2011,Knight Frank LLP,0020002378,"3,288.60",Resources Group - Administrative Estates Dept,RUNNING COSTS - Building Service Charges
52,DCMS,EH,16/03/2011,Knight Frank LLP,0020002378,"13,458.76",Resources Group - Administrative Estates Dept,RUNNING COSTS - Building Service Charges
53,DCMS,EH,16/03/2011,Knight Frank LLP,0020002378,"45,353.70",Resources Group - Administrative Estates Dept,RUNNING COSTS - Rent - Operating Leases
54,DCMS,EH,28/03/2011,Box Technologies Ltd,0020004373,18.00,National Collections Group - Head of Estates Dept,OTHER EXPENDITURE - Computer Equipment <10k
55,DCMS,EH,28/03/2011,Box Technologies Ltd,0020004373,288.00,National Collections Group - Head of Estates Dept,OTHER EXPENDITURE - Computer Equipment <10k
56,DCMS,EH,28/03/2011,Box Technologies Ltd,0020004373,532.80,National Collections Group - Head of Estates Dept,OTHER EXPENDITURE - Computer Equipment <10k
57,DCMS,EH,28/03/2011,Box Technologies Ltd,0020004373,590.40,National Collections Group - Head of Estates Dept,OTHER EXPENDITURE - Computer Equipment <10k
58,DCMS,EH,28/03/2011,Box Technologies Ltd,0020004373,768.00,National Collections Group - Head of Estates Dept,OTHER EXPENDITURE - Computer Equipment <10k
59,DCMS,EH,28/03/2011,Box Technologies Ltd,0020004373,780.00,National Collections Group - Head of Estates Dept,OTHER EXPENDITURE - Computer Equipment <10k
60,DCMS,EH,28/03/2011,Box Technologies Ltd,0020004373,792.00,National Collections Group - Head of Estates Dept,OTHER EXPENDITURE - Computer Equipment <10k
61,DCMS,EH,28/03/2011,Box Technologies Ltd,0020004373,816.00,National Collections Group - Head of Estates Dept,OTHER EXPENDITURE - Computer Equipment <10k
62,DCMS,EH,28/03/2011,Box Technologies Ltd,0020004373,"1,236.00",National Collections Group - Head of Estates Dept,OTHER EXPENDITURE - Computer Equipment <10k
63,DCMS,EH,28/03/2011,Box Technologies Ltd,0020004373,"1,260.00",National Collections Group - Head of Estates Dept,OTHER EXPENDITURE - Computer Equipment <10k
64,DCMS,EH,28/03/2011,Box Technologies Ltd,0020004373,"18,960.00",National Collections Group - Head of Estates Dept,OTHER EXPENDITURE - Computer Equipment <10k
65,DCMS,EH,28/03/2011,Guildford Borough Council - Bus. Rates,0020004697,"56,535.98",Resources Group - Administrative Estates Dept,RUNNING COSTS - Rates & CILOR
66,DCMS,EH,18/03/2011,Sykes and Son Limited,0020003266,"30,068.64",National Collections Group - Property Maintenance Programme,OPERATIONAL COSTS - Planned Maintenance
67,DCMS,EH,28/03/2011,Sykes and Son Limited,0020004453,"2,001.85",National Collections Group - Property Maintenance Programme,OPERATIONAL COSTS - Responsive Repairs M & E
68,DCMS,EH,28/03/2011,Sykes and Son Limited,0020004453,"5,961.08",National Collections Group - Property Maintenance Programme,OPERATIONAL COSTS - Responsive Repairs M & E
69,DCMS,EH,28/03/2011,Sykes and Son Limited,0020004453,"6,486.86",National Collections Group - Property Maintenance Programme,OPERATIONAL COSTS - Responsive Repairs M & E
70,DCMS,EH,28/03/2011,Sykes and Son Limited,0020004453,"15,398.41",National Collections Group - Property Maintenance Programme,OPERATIONAL COSTS - Responsive Repairs M & E
71,DCMS,EH,30/03/2011,Sykes and Son Limited,0020004542,"25,738.25",National Collections Group - Property Maintenance Programme,OPERATIONAL COSTS - Planned Maintenance
72,DCMS,EH,08/03/2011,Skillington Workshop Ltd,0020001534,"27,587.63",National Collections Group - Site Conservation Programme,OPERATIONAL COSTS - Works for Heritage Buildings
73,DCMS,EH,12/04/2011,Skillington Workshop Ltd,0020006612,"35,152.22",National Collections Group - Site Conservation Programme,OPERATIONAL COSTS - Works for Heritage Buildings
74,DCMS,EH,06/04/2011,E Bowman and Sons Ltd,0020004405,"15,030.08",Heritage Protection & Planning Group - National Planning Department,OPERATIONAL COSTS - Works for Heritage Buildings
75,DCMS,EH,06/04/2011,E Bowman and Sons Ltd,0020004405,"53,775.44",Heritage Protection & Planning Group - National Planning Department,OPERATIONAL COSTS - Works for Heritage Buildings
76,DCMS,EH,25/03/2011,Oracle Corporation UK Ltd,0020003855,"40,192.22",Resources Group - IMT Dept,RUNNING COSTS - Hardware Maintenance
77,DCMS,EH,31/03/2011,David Ball Restoration Ltd,0020004843,"38,639.52",National Collections Group - Site Conservation Programme,OPERATIONAL COSTS - Planned Maintenance
78,DCMS,EH,11/04/2011,PAYE Stonework and Restoration Ltd,0020006274,"34,008.10",National Collections Group - Site Conservation Programme,OPERATIONAL COSTS - Works for Heritage Buildings
79,DCMS,EH,09/03/2011,Gillards Worldwide,0020001896,"36,058.62",National Collections Group - Retail Dept,OPERATIONAL COSTS - Storage & warehousing
80,DCMS,EH,16/03/2011,Denton Corker Marshall LLP,0020001895,"72,000.00",National Collections Group - Property Investment Programme,OPERATIONAL COSTS - Fees for Professional Advice
81,DCMS,EH,16/03/2011,Construction Ind Training Board,0020002026,"75,000.00",National Collections Group - Conservation Dept,OPERATIONAL COSTS - Technical research
82,DCMS,EH,09/03/2011,Historic Property Restoration Ltd,0020001726,440.54,National Collections Group - Property Maintenance Programme,OPERATIONAL COSTS - Annual Cyclical Works-Building
83,DCMS,EH,09/03/2011,Historic Property Restoration Ltd,0020001726,479.63,National Collections Group - Property Maintenance Programme,OPERATIONAL COSTS - Annual Cyclical Work M & E
84,DCMS,EH,09/03/2011,Historic Property Restoration Ltd,0020001726,988.33,National Collections Group - Property Maintenance Programme,OPERATIONAL COSTS - Leased Accomodation Maint
85,DCMS,EH,09/03/2011,Historic Property Restoration Ltd,0020001726,"7,711.38",National Collections Group - Property Maintenance Programme,OPERATIONAL COSTS - Annual Cyclical Works-Building
86,DCMS,EH,09/03/2011,Historic Property Restoration Ltd,0020001726,"15,656.04",National Collections Group - Property Maintenance Programme,OPERATIONAL COSTS - Annual Cyclical Work M & E
87,DCMS,EH,09/03/2011,Historic Property Restoration Ltd,0020001727,266.55,National Collections Group - Property Maintenance Programme,OPERATIONAL COSTS - Leased Accomodation Maint
88,DCMS,EH,09/03/2011,Historic Property Restoration Ltd,0020001727,435.20,National Collections Group - Property Maintenance Programme,OPERATIONAL COSTS - Responsive Repairs M & E
89,DCMS,EH,09/03/2011,Historic Property Restoration Ltd,0020001727,"7,833.29",National Collections Group - Property Maintenance Programme,OPERATIONAL COSTS - Responsive Maint Building
90,DCMS,EH,09/03/2011,Historic Property Restoration Ltd,0020001727,"16,023.28",National Collections Group - Property Maintenance Programme,OPERATIONAL COSTS - Responsive Maint Building
91,DCMS,EH,09/03/2011,Historic Property Restoration Ltd,0020001727,"18,243.88",National Collections Group - Property Maintenance Programme,OPERATIONAL COSTS - Responsive Repairs M & E
92,DCMS,EH,28/03/2011,Historic Property Restoration Ltd,0020003963,449.29,National Collections Group - Property Maintenance Programme,OPERATIONAL COSTS - Annual Cyclical Work M & E
93,DCMS,EH,28/03/2011,Historic Property Restoration Ltd,0020003963,"1,575.62",National Collections Group - Property Maintenance Programme,OPERATIONAL COSTS - Annual Cyclical Works-Building
94,DCMS,EH,28/03/2011,Historic Property Restoration Ltd,0020003963,"1,800.54",National Collections Group - Property Maintenance Programme,OPERATIONAL COSTS - Leased Accomodation Maint
95,DCMS,EH,28/03/2011,Historic Property Restoration Ltd,0020003963,"8,838.14",National Collections Group - Property Maintenance Programme,OPERATIONAL COSTS - Annual Cyclical Work M & E
96,DCMS,EH,28/03/2011,Historic Property Restoration Ltd,0020003963,"24,684.05",National Collections Group - Property Maintenance Programme,OPERATIONAL COSTS - Annual Cyclical Works-Building
97,DCMS,EH,28/03/2011,Historic Property Restoration Ltd,0020003969,274.96,National Collections Group - Property Maintenance Programme,OPERATIONAL COSTS - Leased Accomodation Maint
98,DCMS,EH,28/03/2011,Historic Property Restoration Ltd,0020003969,"2,299.21",National Collections Group - Property Maintenance Programme,OPERATIONAL COSTS - Leased Accomodation Maint
99,DCMS,EH,28/03/2011,Historic Property Restoration Ltd,0020003969,"7,723.00",National Collections Group - Property Maintenance Programme,OPERATIONAL COSTS - Responsive Maint Building
100,DCMS,EH,28/03/2011,Historic Property Restoration Ltd,0020003969,"19,584.55",National Collections Group - Property Maintenance Programme,OPERATIONAL COSTS - Responsive Repairs M & E
101,DCMS,EH,28/03/2011,Historic Property Restoration Ltd,0020003969,"27,935.34",National Collections Group - Property Maintenance Programme,OPERATIONAL COSTS - Responsive Maint Building
102,DCMS,EH,07/04/2011,Historic Property Restoration Ltd,0020006203,163.80,National Collections Group - Property Maintenance Programme,OPERATIONAL COSTS - Leased Accomodation Maint
103,DCMS,EH,07/04/2011,Historic Property Restoration Ltd,0020006203,792.55,National Collections Group - Property Maintenance Programme,OPERATIONAL COSTS - Responsive Repairs M & E
104,DCMS,EH,07/04/2011,Historic Property Restoration Ltd,0020006203,"2,359.82",National Collections Group - Property Maintenance Programme,OPERATIONAL COSTS - Leased Accomodation Maint
105,DCMS,EH,07/04/2011,Historic Property Restoration Ltd,0020006203,"8,688.85",National Collections Group - Property Maintenance Programme,OPERATIONAL COSTS - Responsive Maint Building
106,DCMS,EH,07/04/2011,Historic Property Restoration Ltd,0020006203,"17,358.46",National Collections Group - Property Maintenance Programme,OPERATIONAL COSTS - Responsive Repairs M & E
107,DCMS,EH,07/04/2011,Historic Property Restoration Ltd,0020006203,"35,645.86",National Collections Group - Property Maintenance Programme,OPERATIONAL COSTS - Responsive Maint Building
108,DCMS,EH,07/04/2011,Historic Property Restoration Ltd,0020006205,"4,071.56",National Collections Group - Property Maintenance Programme,OPERATIONAL COSTS - Annual Cyclical Works-Building
109,DCMS,EH,07/04/2011,Historic Property Restoration Ltd,0020006205,"7,564.46",National Collections Group - Property Maintenance Programme,OPERATIONAL COSTS - Annual Cyclical Work M & E
110,DCMS,EH,07/04/2011,Historic Property Restoration Ltd,0020006205,"47,268.74",National Collections Group - Property Maintenance Programme,OPERATIONAL COSTS - Annual Cyclical Works-Building
111,DCMS,EH,30/03/2011,Carillion Services Ltd,0020002571,"25,826.50",Resources Group - Administrative Estates Dept,RUNNING COSTS - Repairs to Offices
112,DCMS,EH,16/03/2011,Ratcliffes,0020002381,"283,500.00",Resources Group - Administrative Estates Dept,RUNNING COSTS - Rent - Operating Leases
113,DCMS,EH,21/03/2011,Swindon Borough Council,0020003571,"-192,133.73",Resources Group - Administrative Estates Dept,RUNNING COSTS - Rates Rebates
114,DCMS,EH,21/03/2011,Swindon Borough Council,0020003571,"240,167.16",Resources Group - Administrative Estates Dept,RUNNING COSTS - Rates & CILOR
115,DCMS,EH,04/03/2011,Capita IB Solutions (UK) Ltd,0000794794,"41,747.75",Resources Group - Finance & Procurement Department,RUNNING COSTS - Software Maintenance
116,DCMS,EH,16/03/2011,Linford-Bridgeman Ltd,0020002222,"98,378.65",Heritage Protection & Planning Group - National Planning Department,OPERATIONAL COSTS - Works for Heritage Buildings
117,DCMS,EH,30/03/2011,Linford-Bridgeman Ltd,0020003649,"36,310.01",Heritage Protection & Planning Group - National Planning Department,OPERATIONAL COSTS - Works for Heritage Buildings
118,DCMS,EH,28/03/2011,St Ives Web Ltd,0020003380,"2,862.44",National Collections Group - Marketing Dept,SALES & PROMOTIONS - Promotional Material
119,DCMS,EH,28/03/2011,St Ives Web Ltd,0020003380,"22,802.78",National Collections Group - Marketing Dept,SALES & PROMOTIONS - Promotional Material
120,DCMS,EH,21/03/2011,Donovan O'Farrell,0020003116,"54,750.00",Resources Group - Administrative Estates Dept,RUNNING COSTS - Rent - Operating Leases
121,DCMS,EH,02/03/2011,Archaeological Research Services,0020001098,"35,744.68",Heritage Protection & Planning Group - Heritage Protection Department,ENABLING PROGRAMMES - Hist Environ Prog Projects Gra
122,DCMS,EH,25/03/2011,Archaeological Research Services,0020003629,"50,000.00",Heritage Protection & Planning Group - Heritage Protection Department,ENABLING PROGRAMMES - Hist Environ Prog Projects Gra
123,DCMS,EH,10/03/2011,Prudential Prop Invest Man Ltd,0020001961,"37,724.00",Resources Group - Administrative Estates Dept,RUNNING COSTS - Building Service Charges
124,DCMS,EH,10/03/2011,Prudential Prop Invest Man Ltd,0020001961,"55,303.25",Resources Group - Administrative Estates Dept,RUNNING COSTS - Rent - Operating Leases
125,DCMS,EH,10/03/2011,Prudential Prop Invest Man Ltd,0020001962,"99,785.00",Resources Group - Administrative Estates Dept,RUNNING COSTS - Building Service Charges
126,DCMS,EH,10/03/2011,Prudential Prop Invest Man Ltd,0020001962,"186,401.50",Resources Group - Administrative Estates Dept,RUNNING COSTS - Rent - Operating Leases
127,DCMS,EH,23/03/2011,Prudential Prop Invest Man Ltd,0020003153,"35,156.26",Resources Group - Administrative Estates Dept,RUNNING COSTS - Electricity
128,DCMS,EH,23/03/2011,Prudential Prop Invest Man Ltd,0020003153,"39,578.76",Resources Group - Administrative Estates Dept,RUNNING COSTS - Electricity
129,DCMS,EH,23/03/2011,Prudential Prop Invest Man Ltd,0020003154,311.07,Resources Group - Administrative Estates Dept,RUNNING COSTS - Electricity
130,DCMS,EH,23/03/2011,Prudential Prop Invest Man Ltd,0020003154,"2,192.95",Resources Group - Administrative Estates Dept,RUNNING COSTS - Electricity
131,DCMS,EH,23/03/2011,Prudential Prop Invest Man Ltd,0020003154,"18,176.70",Resources Group - Administrative Estates Dept,RUNNING COSTS - Electricity
132,DCMS,EH,23/03/2011,Prudential Prop Invest Man Ltd,0020003154,"22,262.18",Resources Group - Administrative Estates Dept,RUNNING COSTS - Electricity
133,DCMS,EH,07/03/2011,Enterprise Rent A Car UK Ltd,0020001776,"29,423.26",Resources Group - Corporate,RUNNING COSTS - Car Hire
134,DCMS,EH,05/04/2011,Enterprise Rent A Car UK Ltd,0020006085,"32,729.33",Resources Group - Corporate,RUNNING COSTS - Car Hire
135,DCMS,EH,09/03/2011,Sanderson RBS Ltd,0020001834,"39,315.90",Resources Group - IMT Dept,RUNNING COSTS - Software Maintenance
136,DCMS,EH,29/03/2011,Sanderson RBS Ltd,0020002622,"111,770.40",National Collections Group - Property Investment Programme,OTHER EXPENDITURE - Equipment <10k
137,DCMS,EH,06/04/2011,Sanderson RBS Ltd,0020005315,"30,129.60",National Collections Group - Retail Dept,OTHER EXPENDITURE - Equipment <10k
138,DCMS,EH,31/03/2011,King Sturge LLP,0020004492,"36,064.96",Resources Group - Finance & Procurement Department,OPERATIONAL COSTS - Technical Advisors
139,DCMS,EH,04/03/2011,Ballista Media Ltd,0020001551,"36,000.00",National Collections Group - Historic Properties Department,RUNNING COSTS - Training
140,DCMS,EH,11/04/2011,Willis Ltd,0020006338,270.00,National Collections Group - National Collections Centre,OTHER EXPENDITURE - Insurance
141,DCMS,EH,11/04/2011,Willis Ltd,0020006338,"1,161.00",Resources Group - Finance & Procurement Department,OTHER EXPENDITURE - Insurance
142,DCMS,EH,11/04/2011,Willis Ltd,0020006338,"1,496.63",National Collections Group - National Collections Centre,OTHER EXPENDITURE - Insurance
143,DCMS,EH,11/04/2011,Willis Ltd,0020006338,"2,784.29",National Collections Group - National Collections Centre,OTHER EXPENDITURE - Insurance
144,DCMS,EH,11/04/2011,Willis Ltd,0020006338,"95,198.73",National Collections Group - National Collections Centre,OTHER EXPENDITURE - Insurance
145,DCMS,EH,12/04/2011,Seven Squared Ltd,0020006748,"72,000.00",National Collections Group - Marketing Dept,SALES & PROMOTIONS - Promotional Material
146,DCMS,EH,12/04/2011,Seven Squared Ltd,0020006750,"251,494.36",National Collections Group - Marketing Dept,SALES & PROMOTIONS - Promotional Material
147,DCMS,EH,17/03/2011,Margaret Richard Davies Associates,0020003115,"26,217.19",National Collections Group - Site Conservation Programme,OPERATIONAL COSTS - Fees for Professional Advice
148,DCMS,EH,28/03/2011,Robert Thompsons Craftsmen Ltd,0020004252,"27,727.99",National Collections Group - Property Investment Programme,OTHER EXPENDITURE - Furniture <10k
149,DCMS,EH,16/03/2011,BRB Residuary Ltd,0020002377,"9,345.00",Resources Group - Administrative Estates Dept,RUNNING COSTS - Building Service Charges
150,DCMS,EH,16/03/2011,BRB Residuary Ltd,0020002377,"22,747.50",Resources Group - Administrative Estates Dept,RUNNING COSTS - Rent - Operating Leases
151,DCMS,EH,23/03/2011,The One Off Melbourne Ltd,0020003984,"44,414.40",National Collections Group - Curatorial Department,SALES & PROMOTIONS - Exhibits/Displays
152,DCMS,EH,09/03/2011,Coulson Group Ltd,0020001574,"106,822.09",National Collections Group - Property Investment Programme,NET WIP MOVEMENT - WIP Operational Building Works
153,DCMS,EH,11/04/2011,Coulson Group Ltd,0020005622,"194,660.10",National Collections Group - Property Investment Programme,NET WIP MOVEMENT - WIP Operational Building Works
154,DCMS,EH,25/03/2011,Halcrow Group Ltd,0020003179,"35,040.00",National Collections Group - Property Investment Programme,NET WIP MOVEMENT - WIP Professional Works Advice
155,DCMS,EH,06/04/2011,Tribal Education Ltd,0020004971,"51,129.60",National Collections Group - Head of Estates Dept,NET WIP MOVEMENT - WIP Asset Purch Over 10k
156,DCMS,EH,31/03/2011,Park Communications Ltd,0020004274,"28,595.00",National Collections Group - Marketing Dept,SALES & PROMOTIONS - Promotional Material
157,DCMS,EH,25/03/2011,Robert Woodhead Ltd,0020003954,"30,868.70",National Collections Group - Site Conservation Programme,OPERATIONAL COSTS - Works for Heritage Buildings
158,DCMS,EH,06/04/2011,Robert Woodhead Ltd,0020005961,"89,479.26",National Collections Group - Site Conservation Programme,OPERATIONAL COSTS - Works for Heritage Buildings
159,DCMS,EH,04/04/2011,Pindar Plc,0020001269,"167,597.00",National Collections Group - Marketing Dept,SALES & PROMOTIONS - Promotional Material
160,DCMS,EH,06/04/2011,Digirati Ltd,0020005713,"32,400.00",National Advice & Information Group - Communications Department,OTHER EXPENDITURE - System developments <50k
161,DCMS,EH,30/03/2011,Cravens Advertising Ltd,0020004967,"1,320.60",National Collections Group - Marketing Dept,SALES & PROMOTIONS - Advertising
162,DCMS,EH,30/03/2011,Cravens Advertising Ltd,0020004967,"1,880.00",National Advice & Information Group - Communications Department,SALES & PROMOTIONS - Exhibits/Displays
163,DCMS,EH,30/03/2011,Cravens Advertising Ltd,0020004967,"25,590.00",National Collections Group - Development Director Dept,SALES & PROMOTIONS - Advertising
164,DCMS,EH,30/03/2011,Cravens Advertising Ltd,0020004992,"1,518.69",National Collections Group - Marketing Dept,SALES & PROMOTIONS - Advertising
165,DCMS,EH,30/03/2011,Cravens Advertising Ltd,0020004992,"2,162.00",National Advice & Information Group - Communications Department,SALES & PROMOTIONS - Exhibits/Displays
166,DCMS,EH,30/03/2011,Cravens Advertising Ltd,0020004992,"6,841.81",National Collections Group - Marketing Dept,SALES & PROMOTIONS - Advertising
167,DCMS,EH,30/03/2011,Cravens Advertising Ltd,0020004992,"23,077.70",National Collections Group - Marketing Dept,SALES & PROMOTIONS - Advertising
168,DCMS,EH,06/04/2011,GVA Grimley Ltd,0020005698,"12,136.92",Heritage Protection & Planning Group - National Planning Department,OPERATIONAL COSTS - Fees for Professional Advice
169,DCMS,EH,06/04/2011,GVA Grimley Ltd,0020005698,"19,999.99",Heritage Protection & Planning Group - National Planning Department,OPERATIONAL COSTS - Fees for Professional Advice
170,DCMS,EH,31/03/2011,Quadron Services Ltd,0020004107,360.00,National Collections Group - Property Maintenance Programme,OPERATIONAL COSTS - Annual Cyclical Works-Building
171,DCMS,EH,31/03/2011,Quadron Services Ltd,0020004107,"1,680.00",National Collections Group - Property Maintenance Programme,OPERATIONAL COSTS - Annual Cyclical Works-Building
172,DCMS,EH,31/03/2011,Quadron Services Ltd,0020004107,"6,770.86",National Collections Group - Property Maintenance Programme,OPERATIONAL COSTS - Annual Cyclical Works-Building
173,DCMS,EH,31/03/2011,Quadron Services Ltd,0020004107,"8,570.09",National Collections Group - Property Maintenance Programme,OPERATIONAL COSTS - Annual Cyclical Works-Building
174,DCMS,EH,31/03/2011,Quadron Services Ltd,0020004107,"12,587.07",National Collections Group - Property Maintenance Programme,OPERATIONAL COSTS - Annual Cyclical Works-Building
175,DCMS,EH,13/04/2011,Snape Construction Ltd,0020006857,"60,558.12",Resources Group - Resource Centre,NET WIP MOVEMENT - WIP Refurb & Fitting Out
176,DCMS,EH,16/03/2011,Ian Williams Ltd,0020001665,"105,187.14",Heritage Protection & Planning Group - National Planning Department,OPERATIONAL COSTS - Works for Heritage Buildings
177,DCMS,EH,22/03/2011,Ian Williams Ltd,0020003086,"37,113.84",Heritage Protection & Planning Group - National Planning Department,OPERATIONAL COSTS - Works for Heritage Buildings
178,DCMS,EH,06/04/2011,Ian Williams Ltd,0020005417,"109,282.98",Heritage Protection & Planning Group - National Planning Department,OPERATIONAL COSTS - Works for Heritage Buildings
179,DCMS,EH,06/04/2011,Ian Williams Ltd,0020005418,"38,039.03",Heritage Protection & Planning Group - National Planning Department,OPERATIONAL COSTS - Works for Heritage Buildings
180,DCMS,EH,28/03/2011,A & O Systems & Services Ltd,0020004306,480.00,Resources Group - IMT Dept,NET WIP MOVEMENT - WIP Asset Purch Under 10k
181,DCMS,EH,28/03/2011,A & O Systems & Services Ltd,0020004306,720.00,Resources Group - IMT Dept,NET WIP MOVEMENT - WIP Asset Purch Under 10k
182,DCMS,EH,28/03/2011,A & O Systems & Services Ltd,0020004306,720.00,Resources Group - IMT Dept,NET WIP MOVEMENT - WIP Asset Purch Under 10k
183,DCMS,EH,28/03/2011,A & O Systems & Services Ltd,0020004306,"1,200.00",Resources Group - IMT Dept,NET WIP MOVEMENT - WIP Asset Purch Under 10k
184,DCMS,EH,28/03/2011,A & O Systems & Services Ltd,0020004306,"1,680.00",Resources Group - IMT Dept,NET WIP MOVEMENT - WIP Asset Purch Under 10k
185,DCMS,EH,28/03/2011,A & O Systems & Services Ltd,0020004306,"1,778.40",Resources Group - IMT Dept,NET WIP MOVEMENT - WIP Asset Purch Under 10k
186,DCMS,EH,28/03/2011,A & O Systems & Services Ltd,0020004306,"4,442.40",Resources Group - IMT Dept,NET WIP MOVEMENT - WIP Asset Purch Under 10k
187,DCMS,EH,28/03/2011,A & O Systems & Services Ltd,0020004306,"7,470.00",Resources Group - IMT Dept,NET WIP MOVEMENT - WIP Asset Purch Under 10k
188,DCMS,EH,28/03/2011,A & O Systems & Services Ltd,0020004306,"9,558.00",Resources Group - IMT Dept,NET WIP MOVEMENT - WIP Asset Purch Under 10k
189,DCMS,EH,28/03/2011,A & O Systems & Services Ltd,0020004306,"20,044.80",Resources Group - IMT Dept,NET WIP MOVEMENT - WIP Asset Purch Under 10k
190,DCMS,EH,28/03/2011,A & O Systems & Services Ltd,0020004306,"26,480.40",Resources Group - IMT Dept,NET WIP MOVEMENT - WIP Asset Purch Over 10k
191,DCMS,EH,28/03/2011,A & O Systems & Services Ltd,0020004306,"26,766.00",Resources Group - IMT Dept,NET WIP MOVEMENT - WIP Asset Purch Under 10k
192,DCMS,EH,16/03/2011,Kier Southern,0020002361,"100,776.00",National Collections Group - Site Conservation Programme,OPERATIONAL COSTS - Works for Heritage Buildings
193,DCMS,EH,16/03/2011,Kier Southern,0020002362,"157,890.00",National Collections Group - Property Investment Programme,NET WIP MOVEMENT - WIP Refurb & Fitting Out
194,DCMS,EH,05/04/2011,McCurdy & Co Ltd,0020005264,"29,700.00",National Collections Group - Property Maintenance Programme,OPERATIONAL COSTS - Planned Maintenance
195,DCMS,EH,09/03/2011,Killby & Gayford Limited,0020001902,"32,240.24",National Collections Group - Property Investment Programme,OPERATIONAL COSTS - Works for Heritage Buildings
196,DCMS,EH,11/04/2011,Killby & Gayford Limited,0020006186,"82,729.36",National Collections Group - Property Investment Programme,OPERATIONAL COSTS - Works for Heritage Buildings
197,DCMS,EH,09/03/2011,W. W. Martin (Thanet) Ltd,0020000781,"73,755.29",National Collections Group - Property Investment Programme,NET WIP MOVEMENT - WIP Refurb & Fitting Out
198,DCMS,EH,12/04/2011,W. W. Martin (Thanet) Ltd,0020005265,"41,303.89",National Collections Group - Property Investment Programme,NET WIP MOVEMENT - WIP Refurb & Fitting Out
199,DCMS,EH,02/03/2011,EBB Paper,0020000235,"2,652.06",National Collections Group - Marketing Dept,SALES & PROMOTIONS - Promotional Material
200,DCMS,EH,02/03/2011,EBB Paper,0020000235,"3,629.44",National Collections Group - Marketing Dept,SALES & PROMOTIONS - Promotional Material
201,DCMS,EH,02/03/2011,EBB Paper,0020000235,"4,018.62",National Collections Group - Marketing Dept,SALES & PROMOTIONS - Promotional Material
202,DCMS,EH,02/03/2011,EBB Paper,0020000235,"4,684.69",National Collections Group - Marketing Dept,SALES & PROMOTIONS - Promotional Material
203,DCMS,EH,02/03/2011,EBB Paper,0020000235,"5,748.36",National Collections Group - Marketing Dept,SALES & PROMOTIONS - Promotional Material
204,DCMS,EH,02/03/2011,EBB Paper,0020000235,"7,375.20",National Collections Group - Marketing Dept,SALES & PROMOTIONS - Promotional Material
205,DCMS,EH,02/03/2011,EBB Paper,0020000235,"8,521.20",National Collections Group - Marketing Dept,SALES & PROMOTIONS - Promotional Material
206,DCMS,EH,02/03/2011,EBB Paper,0020000235,"17,806.06",National Collections Group - Marketing Dept,SALES & PROMOTIONS - Promotional Material
207,DCMS,EH,02/03/2011,EBB Paper,0020000235,"18,968.39",National Collections Group - Marketing Dept,SALES & PROMOTIONS - Promotional Material
208,DCMS,EH,31/03/2011,Capita Secure Information Systems Ltd,0020002609,"313,500.00",Resources Group - IMT Dept,RUNNING COSTS - ITFM
209,DCMS,EH,16/03/2011,Capita Secure Information Systems Ltd,0020002610,"256,500.00",Resources Group - IMT Dept,RUNNING COSTS - ITFM
210,DCMS,EH,04/04/2011,Capita Secure Information Systems Ltd,0020002611,"466,800.00",Resources Group - IMT Dept,NET WIP MOVEMENT - WIP Asset Purch Over 10k
211,DCMS,EH,05/04/2011,Capita Secure Information Systems Ltd,0020005246,"330,000.00",Resources Group - IMT Dept,RUNNING COSTS - ITFM
212,DCMS,EH,05/04/2011,Capita Secure Information Systems Ltd,0020005249,"330,000.00",Resources Group - IMT Dept,RUNNING COSTS - ITFM
213,DCMS,EH,11/04/2011,Capita Secure Information Systems Ltd,0020005484,"47,577.60",Resources Group - IMT Dept,OTHER EXPENDITURE - Computer Equipment <10k
214,DCMS,EH,08/04/2011,Virgin Media Business,0020000829,"25,348.32",Resources Group - IMT Dept,RUNNING COSTS - Telephone & Telex
215,DCMS,EH,08/04/2011,Virgin Media Business,0020000830,"32,796.11",Resources Group - IMT Dept,RUNNING COSTS - Telephone & Telex
216,DCMS,EH,09/03/2011,Virgin Media Business,0020001923,"122,353.84",Resources Group - IMT Dept,RUNNING COSTS - Telephone & Telex
217,DCMS,EH,09/03/2011,Virgin Media Business,0020001924,"88,470.28",Resources Group - IMT Dept,RUNNING COSTS - Telephone & Telex
218,DCMS,EH,04/03/2011,J.J.Jones & Sons (St Austell) Ltd,0020001421,"53,041.22",National Collections Group - Property Investment Programme,NET WIP MOVEMENT - WIP Refurb & Fitting Out
219,DCMS,EH,31/03/2011,J.J.Jones & Sons (St Austell) Ltd,0020004839,"63,156.00",National Collections Group - Property Investment Programme,NET WIP MOVEMENT - WIP Refurb & Fitting Out
220,DCMS,EH,21/03/2011,TRAC Engineering Ltd,0020003376,"47,750.09",National Collections Group - Site Conservation Programme,OPERATIONAL COSTS - Works for Heritage Buildings
221,DCMS,EH,09/03/2011,T M Swayne Ltd,0020001217,"32,059.20",National Collections Group - Property Investment Programme,OPERATIONAL COSTS - Works for Heritage Buildings
222,DCMS,EH,02/03/2011,South West Highways Ltd,0020000313,"25,484.54",Resources Group - Administrative Estates Dept,RUNNING COSTS - Dilapidations
223,DCMS,EH,07/04/2011,Brand Vista Limited,0020005999,"27,804.00",National Collections Group - Marketing Dept,SALES & PROMOTIONS - Market Research
224,DCMS,EH,11/04/2011,Cartel Security Systems Plc,0020005422,"58,002.22",National Collections Group - Property Investment Programme,NET WIP MOVEMENT - WIP Refurb & Fitting Out
225,DCMS,EH,06/04/2011,Cleveland Sitesafe Limited,0020005793,"2,280.00",National Collections Group - Property Investment Programme,NET FIXED ASSET EXPENDITURE - Plant & Equipment > 10k
226,DCMS,EH,06/04/2011,Cleveland Sitesafe Limited,0020005793,"25,440.00",National Collections Group - Property Investment Programme,NET FIXED ASSET EXPENDITURE - Plant & Equipment > 10k
227,DCMS,EH,06/04/2011,Ergo Computing,0020005633,490.18,Resources Group - IMT Dept,NET WIP MOVEMENT - WIP Asset Purch Over 10k
228,DCMS,EH,06/04/2011,Ergo Computing,0020005633,591.79,Resources Group - IMT Dept,NET WIP MOVEMENT - WIP Asset Purch Over 10k
229,DCMS,EH,06/04/2011,Ergo Computing,0020005633,"1,268.06",Resources Group - IMT Dept,NET WIP MOVEMENT - WIP Asset Purch Over 10k
230,DCMS,EH,06/04/2011,Ergo Computing,0020005633,"1,555.08",Resources Group - IMT Dept,NET WIP MOVEMENT - WIP Asset Purch Over 10k
231,DCMS,EH,06/04/2011,Ergo Computing,0020005633,"1,622.06",Resources Group - IMT Dept,NET WIP MOVEMENT - WIP Asset Purch Over 10k
232,DCMS,EH,06/04/2011,Ergo Computing,0020005633,"1,686.62",Resources Group - IMT Dept,NET WIP MOVEMENT - WIP Asset Purch Over 10k
233,DCMS,EH,06/04/2011,Ergo Computing,0020005633,"2,931.98",Resources Group - IMT Dept,NET WIP MOVEMENT - WIP Asset Purch Over 10k
234,DCMS,EH,06/04/2011,Ergo Computing,0020005633,"5,854.20",Resources Group - IMT Dept,NET WIP MOVEMENT - WIP Asset Purch Over 10k
235,DCMS,EH,06/04/2011,Ergo Computing,0020005633,"7,409.28",Resources Group - IMT Dept,NET WIP MOVEMENT - WIP Asset Purch Over 10k
236,DCMS,EH,06/04/2011,Ergo Computing,0020005633,"11,462.54",Resources Group - IMT Dept,NET WIP MOVEMENT - WIP Asset Purch Over 10k
237,DCMS,EH,06/04/2011,Ergo Computing,0020005633,"13,573.15",Resources Group - IMT Dept,NET WIP MOVEMENT - WIP Asset Purch Over 10k
238,DCMS,EH,06/04/2011,Ergo Computing,0020005633,"14,700.84",Resources Group - IMT Dept,NET WIP MOVEMENT - WIP Asset Purch Over 10k
239,DCMS,EH,12/04/2011,The Storage Equipment Centre,0020005978,"35,768.40",National Collections Group - Property Investment Programme,NET WIP MOVEMENT - WIP Refurb & Fitting Out
240,DCMS,EH,28/03/2011,LB Camden - Business Rates,0020004646,"-2,718.72",Resources Group - Administrative Estates Dept,RUNNING COSTS - Rates Rebates
241,DCMS,EH,28/03/2011,LB Camden - Business Rates,0020004646,"620,610.00",Resources Group - Administrative Estates Dept,RUNNING COSTS - Rates & CILOR
242,DCMS,EH,23/03/2011,The Battlefield Trust,0090511162,"26,814.00",Heritage Protection & Planning Group - National Planning Department,GRANTS PAYABLE - OTHER GRANTS
243,DCMS,EH,09/03/2011,Diocese of Lincoln,0090511007,"35,645.00",Heritage Protection & Planning Group - National Planning Department,GRANTS PAYABLE - OTHER GRANTS
244,DCMS,EH,16/03/2011,The Architectural Heritage Fund,0090511072,"1,000,000.00",Heritage Protection & Planning Group - National Planning Department,GRANTS PAYABLE - HISTORIC BUILDINGS
245,DCMS,EH,23/03/2011,Keep Britain Tidy,0090511181,"41,715.00",Heritage Protection & Planning Group - National Planning Department,GRANTS PAYABLE - OTHER GRANTS
246,DCMS,EH,07/03/2011,Essex County Council,0090510989,"40,937.00",Heritage Protection & Planning Group - National Planning Department,GRANTS PAYABLE - AREA
247,DCMS,EH,28/03/2011,Durham County Council,0090511224,"5,451.45",Heritage Protection & Planning Group - National Planning Department,GRANTS PAYABLE - AREA
248,DCMS,EH,28/03/2011,Durham County Council,0090511224,"43,788.55",Heritage Protection & Planning Group - National Planning Department,GRANTS PAYABLE - AREA
249,DCMS,EH,01/03/2011,East Riding of Yorkshire Council,0090510871,"55,900.00",Heritage Protection & Planning Group - National Planning Department,GRANTS PAYABLE - AREA
250,DCMS,EH,07/03/2011,Chapter of Truro Cathedral,0090510956,"25,000.00",Heritage Protection & Planning Group - National Planning Department,GRANTS PAYABLE - CATHEDRALS
251,DCMS,EH,21/03/2011,London Borough Of Tower Hamlets,0090511126,"177,705.00",Heritage Protection & Planning Group - National Planning Department,GRANTS PAYABLE - AREA
252,DCMS,EH,21/03/2011,London Borough Of Tower Hamlets,0090511127,"98,522.00",Heritage Protection & Planning Group - National Planning Department,GRANTS PAYABLE - AREA
253,DCMS,EH,22/03/2011,London Borough Of Tower Hamlets,0090511146,"190,411.00",Heritage Protection & Planning Group - National Planning Department,GRANTS PAYABLE - AREA
254,DCMS,EH,16/03/2011,Council Of The Isles Of Scilly,0090511078,"33,075.00",Heritage Protection & Planning Group - National Planning Department,GRANTS PAYABLE - AREA
255,DCMS,EH,21/03/2011,Prince's Regeneration Trust,0090511135,"35,000.00",Heritage Protection & Planning Group - National Planning Department,GRANTS PAYABLE - OTHER GRANTS
256,DCMS,EH,21/03/2011,The Architectural Heritage Fund,0090511138,"77,874.00",Heritage Protection & Planning Group - National Planning Department,GRANTS PAYABLE - OTHER GRANTS
257,DCMS,EH,21/03/2011,Heritage Link,0090511136,"36,697.00",Heritage Protection & Planning Group - National Planning Department,GRANTS PAYABLE - OTHER GRANTS
258,DCMS,EH,08/03/2011,New Forest National Park Authority,0081001409,"35,535.00",Heritage Protection & Planning Group - Heritage Protection Department,GRANTS PAYABLE - AREA
259,DCMS,EH,24/03/2011,ALGAO UK,0081001575,"25,000.00",Heritage Protection & Planning Group - Heritage Protection Department,GRANTS PAYABLE - HISTORIC BUILDINGS
260,DCMS,EH,15/03/2011,North Yorks County Council,0081001463,"40,242.00",Heritage Protection & Planning Group - Heritage Protection Department,GRANTS PAYABLE - HISTORIC BUILDINGS
261,DCMS,EH,15/03/2011,Durham County Council,0081001440,"28,745.00",Heritage Protection & Planning Group - Heritage Protection Department,GRANTS PAYABLE - HISTORIC BUILDINGS
262,DCMS,EH,08/03/2011,Humber Archaeology Partnership,0081001427,"30,000.00",Heritage Protection & Planning Group - Heritage Protection Department,GRANTS PAYABLE - HISTORIC BUILDINGS
263,DCMS,EH,01/03/2011,Historic Environment Service,0081001382,"35,000.00",Heritage Protection & Planning Group - Heritage Protection Department,GRANTS PAYABLE - HISTORIC BUILDINGS
264,DCMS,EH,24/03/2011,Southampton University,0081001536,"45,000.00",Heritage Protection & Planning Group - Heritage Protection Department,GRANTS PAYABLE - PLACES OF WORSHIP
265,DCMS,EH,08/03/2011,Suffolk County Council,0081001416,"34,535.63",Heritage Protection & Planning Group - Heritage Protection Department,GRANTS PAYABLE - PLACES OF WORSHIP
266,DCMS,EH,15/03/2011,Buckinghamshire County Museum,0081001453,"28,000.00",Heritage Protection & Planning Group - Heritage Protection Department,GRANTS PAYABLE - PLACES OF WORSHIP
267,DCMS,EH,24/03/2011,University of Birmingham,0081001520,"29,579.00",Heritage Protection & Planning Group - Heritage Protection Department,GRANTS PAYABLE - PLACES OF WORSHIP
268,DCMS,EH,01/03/2011,Gloucestershire County Council,0081001374,"32,000.00",Heritage Protection & Planning Group - Heritage Protection Department,GRANTS PAYABLE - PLACES OF WORSHIP
269,DCMS,EH,28/03/2011,Gloucestershire County Council,0081001606,"31,514.23",Heritage Protection & Planning Group - Heritage Protection Department,GRANTS PAYABLE - PLACES OF WORSHIP
270,DCMS,EH,01/03/2011,Museum of London Arch Services,0081001375,"25,000.00",Heritage Protection & Planning Group - Heritage Protection Department,GRANTS PAYABLE - HISTORIC BUILDINGS
271,DCMS,EH,15/03/2011,Museum of London Arch Services,0081001470,"25,000.00",Heritage Protection & Planning Group - Heritage Protection Department,GRANTS PAYABLE - PLACES OF WORSHIP
272,DCMS,EH,28/03/2011,Museum of London Arch Services,0081001583,"26,547.75",Heritage Protection & Planning Group - Heritage Protection Department,GRANTS PAYABLE - HISTORIC BUILDINGS
273,DCMS,EH,08/03/2011,Council British Arch York,0081001426,"25,000.00",Heritage Protection & Planning Group - Heritage Protection Department,GRANTS PAYABLE - HISTORIC BUILDINGS
274,DCMS,EH,24/03/2011,Council British Arch York,0081001506,"25,000.00",Heritage Protection & Planning Group - Heritage Protection Department,GRANTS PAYABLE - HISTORIC BUILDINGS
275,DCMS,EH,15/03/2011,Bournemouth University,0081001485,"120,000.00",Heritage Protection & Planning Group - Heritage Protection Department,GRANTS PAYABLE - PLACES OF WORSHIP
276,DCMS,EH,21/03/2011,Southwark Borough Council,0090511128,"36,922.00",Heritage Protection & Planning Group - National Planning Department,GRANTS PAYABLE - AREA
277,DCMS,EH,28/03/2011,Oxford University,0081001607,"38,566.00",Heritage Protection & Planning Group - Heritage Protection Department,GRANTS PAYABLE - PLACES OF WORSHIP
278,DCMS,EH,08/03/2011,Newcastle University,0081001412,"26,889.73",Heritage Protection & Planning Group - Heritage Protection Department,GRANTS PAYABLE - PLACES OF WORSHIP
279,DCMS,EH,15/03/2011,Dorset County Council,0081001447,"48,838.44",Heritage Protection & Planning Group - Heritage Protection Department,GRANTS PAYABLE - PLACES OF WORSHIP
280,DCMS,EH,24/03/2011,Dorset County Council,0081001553,"27,700.00",Heritage Protection & Planning Group - Heritage Protection Department,GRANTS PAYABLE - HISTORIC BUILDINGS
281,DCMS,EH,24/03/2011,Landscape Research Centre,0081001548,"33,044.72",Heritage Protection & Planning Group - Heritage Protection Department,GRANTS PAYABLE - PLACES OF WORSHIP
282,DCMS,EH,01/03/2011,Oxford Archaeology North,0081001368,"25,327.99",Heritage Protection & Planning Group - Heritage Protection Department,GRANTS PAYABLE - PLACES OF WORSHIP
283,DCMS,EH,15/03/2011,Oxford Archaeology North,0081001437,"25,000.00",Heritage Protection & Planning Group - Heritage Protection Department,GRANTS PAYABLE - HISTORIC BUILDINGS
284,DCMS,EH,15/03/2011,University of Manchester,0081001450,"31,785.25",Heritage Protection & Planning Group - Heritage Protection Department,GRANTS PAYABLE - HISTORIC BUILDINGS
285,DCMS,EH,14/03/2011,The National Trust Warminster,0090511045,"767,100.00",Heritage Protection & Planning Group - National Planning Department,GRANTS PAYABLE - HISTORIC BUILDINGS
286,DCMS,EH,14/03/2011,The National Trust Warminster,0090511046,"383,550.00",Heritage Protection & Planning Group - National Planning Department,GRANTS PAYABLE - HISTORIC BUILDINGS
287,DCMS,EH,25/03/2011,Gloucestershire County Council,0090511191,"37,854.00",Heritage Protection & Planning Group - National Planning Department,GRANTS PAYABLE - HISTORIC BUILDINGS
288,DCMS,EH,09/03/2011,Westminster City Council,0090510997,"99,999.00",Heritage Protection & Planning Group - National Planning Department,GRANTS PAYABLE - HISTORIC BUILDINGS
289,DCMS,EH,09/03/2011,The National Trust Worksop,0090511006,"100,000.00",Heritage Protection & Planning Group - National Planning Department,GRANTS PAYABLE - HISTORIC BUILDINGS
290,DCMS,EH,02/03/2011,Foston on the Wolds PCC,0090510948,"21,000.00",Heritage Protection & Planning Group - National Planning Department,GRANTS PAYABLE - PLACES OF WORSHIP
291,DCMS,EH,02/03/2011,Foston on the Wolds PCC,0090510948,"33,000.00",Heritage Protection & Planning Group - National Planning Department,GRANTS PAYABLE - PLACES OF WORSHIP
292,DCMS,EH,25/03/2011,St Mildreds PCC Whippingham,0090511213,"70,200.00",Heritage Protection & Planning Group - National Planning Department,GRANTS PAYABLE - PLACES OF WORSHIP
293,DCMS,EH,23/03/2011,St Peter & St Paul Buckingham PCC,0090511182,"62,000.00",Heritage Protection & Planning Group - National Planning Department,GRANTS PAYABLE - PLACES OF WORSHIP
294,DCMS,EH,09/03/2011,Wighill PCC,0090511002,"49,000.00",Heritage Protection & Planning Group - National Planning Department,GRANTS PAYABLE - PLACES OF WORSHIP
295,DCMS,EH,14/03/2011,St Michael in the Hamlet PCC,0090511023,"91,000.00",Heritage Protection & Planning Group - National Planning Department,GRANTS PAYABLE - PLACES OF WORSHIP
296,DCMS,EH,09/03/2011,Harlaxton College Uni Evansville,0090511005,"48,250.00",Heritage Protection & Planning Group - National Planning Department,GRANTS PAYABLE - HISTORIC BUILDINGS
297,DCMS,EH,14/03/2011,Eardisland PCC,0090511034,"44,000.00",Heritage Protection & Planning Group - National Planning Department,GRANTS PAYABLE - PLACES OF WORSHIP
298,DCMS,EH,21/03/2011,Middridge Grange Farm,0090511107,"80,520.00",Heritage Protection & Planning Group - National Planning Department,GRANTS PAYABLE - HISTORIC BUILDINGS
299,DCMS,EH,02/03/2011,Rochdale Borough Council,0090510943,"70,380.00",Heritage Protection & Planning Group - National Planning Department,GRANTS PAYABLE - HISTORIC BUILDINGS
300,DCMS,EH,21/03/2011,Wear Valley District Council,0090511102,"25,377.00",Heritage Protection & Planning Group - National Planning Department,GRANTS PAYABLE - HISTORIC BUILDINGS
301,DCMS,EH,30/03/2011,Wiggenhall St Germans PCC,0090511249,"45,000.00",Heritage Protection & Planning Group - National Planning Department,GRANTS PAYABLE - PLACES OF WORSHIP
302,DCMS,EH,21/03/2011,Sheffield City Council,0090511108,"100,000.00",Heritage Protection & Planning Group - National Planning Department,GRANTS PAYABLE - HISTORIC BUILDINGS
303,DCMS,EH,23/03/2011,St Marys Church PCC Bartlow,0090511167,"47,000.00",Heritage Protection & Planning Group - National Planning Department,GRANTS PAYABLE - PLACES OF WORSHIP
304,DCMS,EH,07/03/2011,Greater Whitbourne PCC,0090510964,"26,661.00",Heritage Protection & Planning Group - National Planning Department,GRANTS PAYABLE - PLACES OF WORSHIP
305,DCMS,EH,21/03/2011,PCC St Martin of Tours Bilboro,0090511090,"38,500.00",Heritage Protection & Planning Group - National Planning Department,GRANTS PAYABLE - PLACES OF WORSHIP
306,DCMS,EH,16/03/2011,Llanthony Secunda Priory Trust,0090511069,"34,150.00",Heritage Protection & Planning Group - National Planning Department,GRANTS PAYABLE - HISTORIC BUILDINGS
307,DCMS,EH,16/03/2011,St John on Bethnal Green PCC,0090511076,"65,000.00",Heritage Protection & Planning Group - National Planning Department,GRANTS PAYABLE - PLACES OF WORSHIP
308,DCMS,EH,07/03/2011,PCC of Snitterfield Parish,0090510958,"26,550.00",Heritage Protection & Planning Group - National Planning Department,GRANTS PAYABLE - PLACES OF WORSHIP
309,DCMS,EH,21/03/2011,Norwich Historic Church Trust Ltd,0090511134,"31,013.00",Heritage Protection & Planning Group - National Planning Department,GRANTS PAYABLE - HISTORIC BUILDINGS
310,DCMS,EH,28/03/2011,Heritage Trust of Lincolnshire,0090511241,"84,700.00",Heritage Protection & Planning Group - National Planning Department,GRANTS PAYABLE - HISTORIC BUILDINGS
311,DCMS,EH,01/03/2011,PCC of All Saints Church,0090510921,"69,750.00",Heritage Protection & Planning Group - National Planning Department,GRANTS PAYABLE - PLACES OF WORSHIP
312,DCMS,EH,01/03/2011,PCC of All Saints Church,0090510922,"20,050.00",Heritage Protection & Planning Group - National Planning Department,GRANTS PAYABLE - PLACES OF WORSHIP
313,DCMS,EH,01/03/2011,PCC of All Saints Church,0090510922,"35,750.00",Heritage Protection & Planning Group - National Planning Department,GRANTS PAYABLE - PLACES OF WORSHIP
314,DCMS,EH,09/03/2011,Ufford PCC,0090511014,"37,500.00",Heritage Protection & Planning Group - National Planning Department,GRANTS PAYABLE - PLACES OF WORSHIP
315,DCMS,EH,30/03/2011,Wood Dalling PCC,0090511248,"43,650.00",Heritage Protection & Planning Group - National Planning Department,GRANTS PAYABLE - PLACES OF WORSHIP
316,DCMS,EH,21/03/2011,Shropham PCC,0090511088,"46,500.00",Heritage Protection & Planning Group - National Planning Department,GRANTS PAYABLE - PLACES OF WORSHIP
317,DCMS,EH,07/03/2011,St John The Baptist Tuebrook PCC,0090510977,"35,537.00",Heritage Protection & Planning Group - National Planning Department,GRANTS PAYABLE - PLACES OF WORSHIP
318,DCMS,EH,21/03/2011,Merstham PCC,0090511114,"32,400.00",Heritage Protection & Planning Group - National Planning Department,GRANTS PAYABLE - PLACES OF WORSHIP
319,DCMS,EH,21/03/2011,PCC of Great & Little Wigborough,0090511131,"51,500.00",Heritage Protection & Planning Group - National Planning Department,GRANTS PAYABLE - PLACES OF WORSHIP
320,DCMS,EH,21/03/2011,St Marys PCC Bishops Lydeard,0090511118,"33,750.00",Heritage Protection & Planning Group - National Planning Department,GRANTS PAYABLE - PLACES OF WORSHIP
321,DCMS,EH,25/03/2011,Chapter of Hereford Cathedral,0090511199,"34,400.00",Heritage Protection & Planning Group - National Planning Department,GRANTS PAYABLE - HISTORIC BUILDINGS
322,DCMS,EH,23/03/2011,Holmfirth PCC,0090511176,"72,000.00",Heritage Protection & Planning Group - National Planning Department,GRANTS PAYABLE - PLACES OF WORSHIP
323,DCMS,EH,21/03/2011,Guru Teg Bahadur Sikh Gurdwara,0090511141,"14,150.00",Heritage Protection & Planning Group - National Planning Department,GRANTS PAYABLE - PLACES OF WORSHIP
324,DCMS,EH,21/03/2011,Guru Teg Bahadur Sikh Gurdwara,0090511141,"21,250.00",Heritage Protection & Planning Group - National Planning Department,GRANTS PAYABLE - PLACES OF WORSHIP
325,DCMS,EH,25/03/2011,The Chapter of Worcester Cathedral,0090511198,"53,771.00",Heritage Protection & Planning Group - National Planning Department,GRANTS PAYABLE - HISTORIC BUILDINGS
326,DCMS,EH,14/03/2011,Natural England,0090511037,"33,750.00",Heritage Protection & Planning Group - National Planning Department,GRANTS PAYABLE - HISTORIC BUILDINGS
327,DCMS,EH,14/03/2011,Natural England,0090511053,"33,750.00",Heritage Protection & Planning Group - National Planning Department,GRANTS PAYABLE - HISTORIC BUILDINGS
328,DCMS,EH,14/03/2011,Hagley Hall,0090511029,"98,750.00",Heritage Protection & Planning Group - National Planning Department,GRANTS PAYABLE - HISTORIC BUILDINGS
329,DCMS,EH,30/03/2011,Dean and Chapter of Rochester,0090511085,"61,500.00",Heritage Protection & Planning Group - National Planning Department,GRANTS PAYABLE - CATHEDRALS
330,DCMS,EH,28/03/2011,Moggerhanger Hs Preservation Trust,0090511230,"71,788.00",Heritage Protection & Planning Group - National Planning Department,GRANTS PAYABLE - HISTORIC BUILDINGS
331,DCMS,EH,14/03/2011,Derbyshire County Council,0090511049,"228,000.00",Heritage Protection & Planning Group - National Planning Department,GRANTS PAYABLE - HISTORIC BUILDINGS
332,DCMS,EH,14/03/2011,Derbyshire County Council,0090511050,"35,072.00",Heritage Protection & Planning Group - National Planning Department,GRANTS PAYABLE - OTHER GRANTS
333,DCMS,EH,23/03/2011,Norfolk Churches Trust,0090511168,"40,926.00",Heritage Protection & Planning Group - National Planning Department,GRANTS PAYABLE - HISTORIC BUILDINGS
334,DCMS,EH,09/03/2011,Thixendale PCC,0090510994,"30,000.00",Heritage Protection & Planning Group - National Planning Department,GRANTS PAYABLE - PLACES OF WORSHIP
335,DCMS,EH,25/03/2011,St Andrew's PCC Ombersley,0090511202,"41,500.00",Heritage Protection & Planning Group - National Planning Department,GRANTS PAYABLE - PLACES OF WORSHIP
336,DCMS,EH,07/03/2011,The PCC of St Martin's Barcheston,0090510959,"42,500.00",Heritage Protection & Planning Group - National Planning Department,GRANTS PAYABLE - PLACES OF WORSHIP
337,DCMS,EH,14/03/2011,Hopton PCC,0090511065,"37,500.00",Heritage Protection & Planning Group - National Planning Department,GRANTS PAYABLE - PLACES OF WORSHIP
338,DCMS,EH,07/03/2011,"PCC of St Edmund, Thurne",0090510986,"80,500.00",Heritage Protection & Planning Group - National Planning Department,GRANTS PAYABLE - PLACES OF WORSHIP
339,DCMS,EH,23/03/2011,Commitee Newnham PCC,0090511170,"43,500.00",Heritage Protection & Planning Group - National Planning Department,GRANTS PAYABLE - PLACES OF WORSHIP
340,DCMS,EH,07/03/2011,PCC of St John the Evangelist,0090510957,"253,500.00",Heritage Protection & Planning Group - National Planning Department,GRANTS PAYABLE - PLACES OF WORSHIP
341,DCMS,EH,09/03/2011,Houghton Conquest PCC,0090511011,"38,000.00",Heritage Protection & Planning Group - National Planning Department,GRANTS PAYABLE - PLACES OF WORSHIP
342,DCMS,EH,02/03/2011,Catton District Church Council,0090510949,"46,000.00",Heritage Protection & Planning Group - National Planning Department,GRANTS PAYABLE - PLACES OF WORSHIP
343,DCMS,EH,09/03/2011,Whaddon PCC,0090511009,"58,500.00",Heritage Protection & Planning Group - National Planning Department,GRANTS PAYABLE - PLACES OF WORSHIP
344,DCMS,EH,23/03/2011,Rampton PCC,0090511174,"56,000.00",Heritage Protection & Planning Group - National Planning Department,GRANTS PAYABLE - PLACES OF WORSHIP
345,DCMS,EH,16/03/2011,Sedgeford PCC,0090511066,"15,000.00",Heritage Protection & Planning Group - National Planning Department,GRANTS PAYABLE - PLACES OF WORSHIP
346,DCMS,EH,16/03/2011,Sedgeford PCC,0090511066,"43,000.00",Heritage Protection & Planning Group - National Planning Department,GRANTS PAYABLE - PLACES OF WORSHIP
347,DCMS,EH,14/03/2011,St Matthew's PCC,0090511061,"30,000.00",Heritage Protection & Planning Group - National Planning Department,GRANTS PAYABLE - PLACES OF WORSHIP
348,DCMS,EH,14/03/2011,St Mary's PCC,0090511024,"45,500.00",Heritage Protection & Planning Group - National Planning Department,GRANTS PAYABLE - PLACES OF WORSHIP
349,DCMS,EH,21/03/2011,All Hallows Church Allerton,0090511144,"40,000.00",Heritage Protection & Planning Group - National Planning Department,GRANTS PAYABLE - PLACES OF WORSHIP
350,DCMS,EH,14/03/2011,PCC of St John's the Evangelist,0090511033,"32,850.00",Heritage Protection & Planning Group - National Planning Department,GRANTS PAYABLE - PLACES OF WORSHIP
351,DCMS,EH,01/03/2011,The Corporate Body of Lincoln Cathedral,0090510924,"187,500.00",Heritage Protection & Planning Group - National Planning Department,GRANTS PAYABLE - HISTORIC BUILDINGS
352,DCMS,EH,23/03/2011,Coalhouse Fort Project,0090511175,"26,182.00",Heritage Protection & Planning Group - National Planning Department,GRANTS PAYABLE - HISTORIC BUILDINGS
353,DCMS,EH,25/03/2011,UK Historic Building Preservation Trust,0090511201,"250,000.00",Heritage Protection & Planning Group - National Planning Department,GRANTS PAYABLE - AREA
354,DCMS,EH,07/03/2011,Weymouth & Portland Borough Co,0090510967,"121,875.00",Heritage Protection & Planning Group - National Planning Department,GRANTS PAYABLE - AREA
355,DCMS,EH,16/03/2011,Burnley Borough Council,0090511080,"101,306.00",Heritage Protection & Planning Group - National Planning Department,GRANTS PAYABLE - HISTORIC BUILDINGS
356,DCMS,EH,16/03/2011,Burnley Borough Council,0090511082,"50,993.00",Heritage Protection & Planning Group - National Planning Department,GRANTS PAYABLE - HISTORIC BUILDINGS
357,DCMS,EH,01/03/2011,Lyme Bay Cider Company Ltd,0001072246,"74,338.00",National Collections Group - Retail Dept,TOTAL STOCK - Retail Goods & Souvenirs Purch
358,DCMS,EH,28/03/2011,Lyme Bay Cider Company Ltd,0001072478,"117,165.66",National Collections Group - Retail Dept,TOTAL STOCK - Retail Goods & Souvenirs Purch
359,DCMS,EH,15/03/2011,Rowena Souvenirs,0001072338,"39,602.61",National Collections Group - Retail Dept,TOTAL STOCK - Retail Goods & Souvenirs Purch
